fUSD/lending_fUSD_20250109
["ID","MTS","AMOUNT","RATE_DAILY","PERIOD"]
[348345745,1736458240450,-500.0,9.899e-05,2]
[348345747,1736458240459,-500.0,9.899e-05,2]
[348345749,1736458240469,-500.0,9.899e-05,2]
[348345751,1736458240478,-500.0,9.899e-05,2]
[348345753,1736458240487,-500.0,9.899e-05,2]
[348345755,1736458240497,-500.0,9.899e-05,2]
[348345757,1736458240506,-500.0,9.899e-05,2]
[348345759,1736458240515,-500.0,9.899e-05,2]
[348345761,1736458240525,-500.0,9.899e-05,2]
[348345763,1736458240534,-500.0,9.899e-05,2]
[348345765,1736458240543,-500.0,9.899e-05,2]
[348345767,1736458240553,-500.0,9.899e-05,2]
[348345769,1736458240563,-500.0,9.899e-05,2]
[348345770,1736458240572,-500.0,9.899e-05,2]
[348345772,1736458240581,-500.0,9.899e-05,2]
[348345774,1736458240590,-500.0,9.899e-05,2]
[348345776,1736458240600,-500.0,9.899e-05,2]
[348345778,1736458240610,-500.0,9.899e-05,2]
[348345780,1736458240619,-500.0,9.899e-05,2]
[348345782,1736458240628,-500.0,9.899e-05,2]
[348345784,1736458240638,-500.0,9.899e-05,2]
[348345786,1736458240653,-500.0,9.899e-05,2]
[348345788,1736458240663,-500.0,9.899e-05,2]
[348345790,1736458240672,-500.0,9.899e-05,2]
[348345792,1736458240682,-517.05,9.899e-05,2]
[348345794,1736458240692,-500.0,9.899e-05,2]
[348345796,1736458240702,-500.0,9.899e-05,2]
[348345798,1736458240712,-500.0,9.899e-05,2]
[348345800,1736458240722,-500.0,9.899e-05,2]
[348345802,1736458240732,-500.0,9.899e-05,2]
[348345804,1736458240741,-500.0,9.899e-05,2]
[348345806,1736458240750,-606.44591258,9.899e-05,2]
[348345808,1736458240760,-500.0,9.899e-05,2]
[348345810,1736458240771,-500.0,9.899e-05,2]
[348345812,1736458240780,-500.0,9.899e-05,2]
[348345814,1736458240790,-500.0,9.899e-05,2]
[348345816,1736458240799,-500.0,9.899e-05,2]
[348345818,1736458240809,-500.0,9.899e-05,2]
[348345820,1736458240819,-500.0,9.899e-05,2]
[348345822,1736458240828,-500.0,9.899e-05,2]
[348345824,1736458240838,-500.0,9.899e-05,2]
[348345826,1736458240847,-500.0,9.899e-05,2]
[348345828,1736458240857,-500.0,9.899e-05,2]
[348345830,1736458240866,-500.0,9.899e-05,2]
[348345832,1736458240876,-500.0,9.899e-05,2]
[348345834,1736458240886,-500.0,9.899e-05,2]
[348345836,1736458240900,-500.0,9.899e-05,2]
[348345838,1736458240910,-500.0,9.899e-05,2]
[348345840,1736458240919,-500.0,9.899e-05,2]
[348345842,1736458240928,-500.0,9.899e-05,2]
[348345844,1736458240937,-500.0,9.899e-05,2]
[348345846,1736458240947,-500.0,9.899e-05,2]
[348345848,1736458240956,-500.0,9.899e-05,2]
[348345850,1736458240965,-500.0,9.899e-05,2]
[348345852,1736458240974,-500.0,9.899e-05,2]
[348345854,1736458240983,-500.0,9.899e-05,2]
[348345856,1736458240992,-500.0,9.899e-05,2]
[348345858,1736458241002,-500.0,9.899e-05,2]
[348345860,1736458241011,-623.33,9.899e-05,2]
[348345862,1736458241020,-500.0,9.899e-05,2]
[348345864,1736458241030,-500.0,9.899e-05,2]
[348345866,1736458241040,-500.0,9.899e-05,2]
[348345868,1736458241050,-500.0,9.899e-05,2]
[348345870,1736458241059,-585.80467443,9.899e-05,2]
[348345872,1736458241069,-500.0,9.899e-05,2]
[348345874,1736458241078,-500.0,9.899e-05,2]
[348345876,1736458241088,-587.31,9.899e-05,2]
[348345878,1736458241098,-500.0,9.899e-05,2]
[348345880,1736458241108,-500.0,9.899e-05,2]
[348345882,1736458241117,-500.0,9.899e-05,2]
[348345884,1736458241127,-500.0,9.899e-05,2]
[348345886,1736458241137,-500.0,9.899e-05,2]
[348345888,1736458241149,-500.0,9.899e-05,2]
[348345890,1736458241159,-500.0,9.899e-05,2]
[348345892,1736458241168,-500.0,9.899e-05,2]
[348345894,1736458241178,-500.0,9.899e-05,2]
[348345896,1736458241187,-500.0,9.899e-05,2]
[348345898,1736458241196,-500.0,9.899e-05,2]
[348345900,1736458241206,-500.0,9.899e-05,2]
[348345902,1736458241216,-500.0,9.899e-05,2]
[348345904,1736458241225,-500.0,9.899e-05,2]
[348345906,1736458241235,-500.0,9.899e-05,2]
[348345908,1736458241244,-500.0,9.899e-05,2]
[348345910,1736458241253,-500.0,9.899e-05,2]
[348345912,1736458241262,-500.0,9.899e-05,2]
[348345914,1736458241271,-433.29028986,9.899e-05,2]
[348345916,1736458241285,-500.0,9.899e-05,2]
[348345918,1736458241296,-500.0,9.899e-05,2]
[348345919,1736458241305,-500.0,9.899e-05,2]
[348345920,1736458241315,-500.0,9.899e-05,2]
[348345921,1736458241326,-500.0,9.899e-05,2]
[348345922,1736458241335,-500.0,9.899e-05,2]
[348345923,1736458241344,-500.0,9.899e-05,2]
[348345924,1736458241354,-500.0,9.899e-05,2]
[348345925,1736458241363,-500.0,9.899e-05,2]
[348345926,1736458241373,-500.0,9.899e-05,2]
[348345927,1736458241383,-500.0,9.899e-05,2]
[348345929,1736458241393,-500.0,9.899e-05,2]
[348345931,1736458241403,-500.0,9.899e-05,2]
[348345933,1736458241413,-500.0,9.899e-05,2]
[348345935,1736458241422,-500.0,9.899e-05,2]
[348345937,1736458241432,-500.0,9.899e-05,2]
[348345939,1736458241441,-500.0,9.899e-05,2]
[348345941,1736458241451,-500.0,9.899e-05,2]
[348345943,1736458241460,-500.0,9.899e-05,2]
[348345945,1736458241470,-500.0,9.899e-05,2]
[348345947,1736458241479,-500.0,9.899e-05,2]
[348345949,1736458241489,-500.0,9.899e-05,2]
[348345951,1736458241499,-500.0,9.899e-05,2]
[348345953,1736458241510,-500.0,9.899e-05,2]
[348345955,1736458241519,-500.0,9.899e-05,2]
[348345957,1736458241529,-500.0,9.899e-05,2]
[348345959,1736458241539,-559.26420277,9.899e-05,2]
[348345961,1736458241548,-500.0,9.899e-05,2]
[348345963,1736458241559,-500.0,9.899e-05,2]
[348345965,1736458241569,-500.0,9.899e-05,2]
[348345967,1736458241578,-501.56653659,9.899e-05,2]
[348345969,1736458241587,-500.0,9.899e-05,2]
[348345971,1736458241596,-500.0,9.899e-05,2]
[348345973,1736458241606,-500.0,9.899e-05,2]
[348345975,1736458241615,-500.0,9.899e-05,2]
[348345977,1736458241624,-500.0,9.899e-05,2]
[348345979,1736458241634,-484.80963345,9.899e-05,2]
[348345981,1736458241646,-500.0,9.899e-05,2]
[348345983,1736458241656,-500.0,9.899e-05,2]
[348345985,1736458241665,-500.0,9.899e-05,2]
[348345987,1736458241675,-500.0,9.899e-05,2]
[348345989,1736458241684,-500.0,9.899e-05,2]
[348345991,1736458241693,-584.46,9.899e-05,2]
[348345993,1736458241703,-500.0,9.899e-05,2]
[348345995,1736458241712,-500.0,9.899e-05,2]
[348345997,1736458241722,-500.0,9.899e-05,2]
[348345999,1736458241730,-500.0,9.899e-05,2]
[348346001,1736458241739,-500.0,9.899e-05,2]
[348346003,1736458241749,-500.0,9.899e-05,2]
[348346005,1736458241759,-500.0,9.899e-05,2]
[348346007,1736458241768,-500.0,9.899e-05,2]
[348346009,1736458241778,-500.0,9.899e-05,2]
[348346011,1736458241787,-500.0,9.899e-05,2]
[348346013,1736458241797,-500.0,9.899e-05,2]
[348346015,1736458241806,-500.0,9.899e-05,2]
[348346017,1736458241816,-500.0,9.899e-05,2]
[348346019,1736458241825,-500.0,9.899e-05,2]
[348346021,1736458241834,-500.0,9.899e-05,2]
[348346023,1736458241844,-500.0,9.899e-05,2]
[348346025,1736458241853,-500.0,9.899e-05,2]
[348346026,1736458241862,-500.0,9.899e-05,2]
[348346028,1736458241871,-500.0,9.899e-05,2]
[348346030,1736458241880,-500.0,9.899e-05,2]
[348346032,1736458241890,-500.0,9.899e-05,2]
[348346034,1736458241901,-500.0,9.899e-05,2]
[348346036,1736458241910,-500.0,9.899e-05,2]
[348346038,1736458241919,-500.0,9.899e-05,2]
[348346040,1736458241928,-500.0,9.899e-05,2]
[348346042,1736458241937,-500.0,9.899e-05,2]
[348346044,1736458241947,-500.0,9.899e-05,2]
[348346046,1736458241956,-500.0,9.899e-05,2]
[348346048,1736458241965,-500.0,9.899e-05,2]
[348346050,1736458241975,-500.0,9.899e-05,2]
[348346052,1736458241984,-500.92641991,9.899e-05,2]
[348346054,1736458241993,-500.0,9.899e-05,2]
[348346056,1736458242003,-500.0,9.899e-05,2]
[348346058,1736458242012,-500.0,9.899e-05,2]
[348346060,1736458242022,-500.0,9.899e-05,2]
[348346062,1736458242031,-500.0,9.899e-05,2]
[348346064,1736458242041,-500.0,9.899e-05,2]
[348346066,1736458242050,-500.0,9.899e-05,2]
[348346068,1736458242059,-500.0,9.899e-05,2]
[348346070,1736458242069,-500.0,9.899e-05,2]
[348346072,1736458242078,-500.0,9.899e-05,2]
[348346074,1736458242087,-500.0,9.899e-05,2]
[348346076,1736458242096,-500.0,9.899e-05,2]
[348346078,1736458242105,-630.64,9.899e-05,2]
[348346080,1736458242115,-500.0,9.899e-05,2]
[348346082,1736458242124,-500.0,9.899e-05,2]
[348346084,1736458242134,-500.0,9.899e-05,2]
[348346086,1736458242143,-500.0,9.899e-05,2]
[348346088,1736458242154,-500.0,9.899e-05,2]
[348346090,1736458242164,-500.07659804,9.899e-05,2]
[348346092,1736458242174,-500.0,9.899e-05,2]
[348346094,1736458242183,-500.0,9.899e-05,2]
[348346096,1736458242192,-500.0,9.899e-05,2]
[348346098,1736458242202,-500.0,9.899e-05,2]
[348346100,1736458242211,-500.0,9.899e-05,2]
[348346102,1736458242221,-500.0,9.899e-05,2]
[348346104,1736458242231,-500.0,9.899e-05,2]
[348346106,1736458242240,-500.0,9.899e-05,2]
[348346108,1736458242249,-500.0,9.899e-05,2]
[348346110,1736458242259,-500.0,9.899e-05,2]
[348346112,1736458242269,-500.0,9.899e-05,2]
[348346114,1736458242282,-500.0,9.899e-05,2]
[348346116,1736458242291,-500.0,9.899e-05,2]
[348346118,1736458242300,-500.0,9.899e-05,2]
[348346119,1736458242310,-500.0,9.899e-05,2]
[348346120,1736458242321,-500.09682997,9.899e-05,2]
[348346121,1736458242331,-667.37,9.899e-05,2]
[348346122,1736458242341,-500.0,9.899e-05,2]
[348346123,1736458242351,-501.25576073,9.899e-05,2]
[348346124,1736458242361,-500.0,9.899e-05,2]
[348346125,1736458242371,-500.0,9.899e-05,2]
[348346126,1736458242380,-500.0,9.899e-05,2]
[348346127,1736458242390,-500.0,9.899e-05,2]
[348346128,1736458242401,-500.0,9.899e-05,2]
[348346129,1736458242410,-500.0,9.899e-05,2]
[348346130,1736458242421,-500.0,9.899e-05,2]
[348346131,1736458242431,-500.0,9.899e-05,2]
[348346132,1736458242441,-500.0,9.899e-05,2]
[348346133,1736458242451,-500.0,9.899e-05,2]
[348346134,1736458242462,-500.0,9.899e-05,2]
[348346135,1736458242472,-500.0,9.899e-05,2]
[348346136,1736458242482,-500.0,9.899e-05,2]
[348346137,1736458242492,-505.47,9.899e-05,2]
[348346138,1736458242502,-500.06978148,9.899e-05,2]
[348346139,1736458242512,-500.0,9.899e-05,2]
[348346140,1736458242522,-500.0,9.899e-05,2]
[348346141,1736458242532,-501.4663779,9.899e-05,2]
[348346142,1736458242541,-500.0,9.899e-05,2]
[348346143,1736458242551,-500.0,9.899e-05,2]
[348346144,1736458242561,-500.0,9.899e-05,2]
[348346145,1736458242571,-500.0,9.899e-05,2]
[348346146,1736458242581,-513.2684366,9.899e-05,2]
[348346147,1736458242591,-500.0,9.899e-05,2]
[348346148,1736458242602,-500.0,9.899e-05,2]
[348346149,1736458242612,-500.0,9.899e-05,2]
[348346150,1736458242622,-38420.04673276,9.9e-05,2]
[348346151,1736458242633,-20728.46682735,9.9e-05,2]
[348346152,1736458242643,-11247.36935842,9.9e-05,2]
[348346153,1736458242654,-185000.0,9.9e-05,2]
[348346154,1736458242665,-322.19018695,9.907e-05,2]
[348346155,1736458242674,-371.23,9.921e-05,2]
[348346156,1736458242684,-1000.0,9.928e-05,2]
[348346157,1736458242694,-413458.18097762,9.972e-05,2]
[348346159,1736458243113,-7704.2232308,9.972e-05,2]
[348346160,1736458243125,-14347.6224138,9.972e-05,2]
[348346161,1736458243137,-73367.61797759,9.972e-05,2]
[348346162,1736458243147,-28733.0,9.973e-05,2]
[348346163,1736458243157,-198.1551735,9.973e-05,2]
[348346164,1736458243166,-151.82733164,9.973e-05,2]
[348346165,1736458243175,-500.0,9.973e-05,2]
[348346166,1736458243185,-199.67159994,9.973e-05,2]
[348346167,1736458243195,-299.5824905,9.973e-05,2]
[348346168,1736458243204,-150.82188305,9.973e-05,2]
[348346169,1736458243214,-500.0,9.973e-05,2]
[348346170,1736458243223,-500.0,9.973e-05,2]
[348346171,1736458243232,-500.0,9.973e-05,2]
[348346172,1736458243242,-156.356,9.974e-05,2]
[348346173,1736458243251,-6771.496,9.978e-05,2]
[348346174,1736458243261,-11044.68815609,9.98e-05,2]
[348346175,1736458243273,-30026.03351192,9.98e-05,2]
[348346184,1736458244761,-150.0,9.198e-05,2]
[348346185,1736458244771,-500.0,9.845e-05,2]
[348346186,1736458244781,-500.0,9.846e-05,2]
[348346187,1736458244790,-150.0,9.879e-05,2]
[348346188,1736458244800,-500.0,9.899e-05,2]
[348346189,1736458244810,-500.0,9.899e-05,2]
[348346190,1736458244820,-7320.92770647,9.98e-05,2]
[348346191,1736458244832,-8169.2,9.98e-05,2]
[348346192,1736458244844,-2190.0,9.98e-05,2]
[348346193,1736458244855,-450126.79522533,9.98e-05,2]
[348346194,1736458244864,-508877.64459981,9.982e-05,2]
[348346195,1736458244874,-508877.64459981,9.987e-05,2]
[348346196,1736458244882,-4859.97566595,9.988e-05,2]
[348346197,1736458244892,-508877.64459981,9.994e-05,2]
[348346198,1736458244904,-508877.64459981,9.998e-05,2]
[348346199,1736458244914,-500.0,9.999e-05,2]
[348346200,1736458244923,-500.0,9.999e-05,2]
[348346201,1736458244932,-500.0,9.999e-05,2]
[348346202,1736458244942,-500.0,9.999e-05,2]
[348346203,1736458244951,-500.0,9.999e-05,2]
[348346204,1736458244960,-500.0,9.999e-05,2]
[348346205,1736458244970,-500.0,9.999e-05,2]
[348346206,1736458244980,-1677.0,0.0001,2]
[348346207,1736458244989,-4485230.31912533,0.0001,4]
[348346208,1736458245001,-1322.5644091,0.0001,4]
[348346209,1736458245104,-807.5939085,0.0001,4]
[348346210,1736458245116,-266.06591,0.0001,4]
[348346211,1736458245128,-1479.662167,0.0001,4]
[348346212,1736458245140,-2198.98756785,0.0001,4]
[348346213,1736458245153,-482.995,0.0001,4]
[348346214,1736458245168,-942752.79570891,0.0001,4]
[348346215,1736458245456,-5755.96575606,0.0001,4]
[348346216,1736458245477,-9423.42,0.0001,4]
[348346217,1736458245489,-5165.84602746,0.0001,4]
[348346218,1736458245500,-10153.0,0.0001,4]
[348346219,1736458245512,-7025.61758418,0.0001,4]
[348346220,1736458245523,-387.78550913,0.0001,4]
[348346221,1736458245535,-1431.0534,0.0001,4]
[348346222,1736458245554,-7868.06130807,0.0001,4]
[348346223,1736458245565,-1936.5,0.0001,4]
[348346230,1736458246096,-1011.3,9.846e-05,2]
[348346231,1736458246106,-528.79,9.846e-05,2]
[348346232,1736458246115,-49433.23991184,0.0001,4]
[348346233,1736458246124,-277.29172925,0.0001,2]
[348346234,1736458246133,-2142.65180073,0.0001,2]
[348346235,1736458246144,-463.31568064,0.0001,2]
[348346236,1736458246236,-477.24801,0.0001,2]
[348346237,1736458246247,-482.15821,0.0001,2]
[348346238,1736458246258,-558.900001,0.0001,2]
[348346239,1736458246270,-267.39240461,0.0001,2]
[348346240,1736458246298,-7673.85793276,0.0001,2]
[348346241,1736458246878,-500.0,9.899e-05,2]
[348346242,1736458246887,-500.0,9.899e-05,2]
[348346243,1736458246898,-16980.77691913,0.0001,2]
[348346244,1736458246917,-503.66142814,0.0001,2]
[348346245,1736458246928,-890.17579324,0.0001,2]
[348346246,1736458246955,-261.0699264,0.0001,2]
[348346247,1736458246991,-3321.41070093,0.0001,2]
[348346248,1736458247003,-3469.75000198,0.0001,2]
[348346249,1736458247014,-317.61014283,0.0001,2]
[348346257,1736458700715,1614.90147488,8.513e-05,2]
[348346258,1736458700736,2825.09852512,8.513e-05,2]
[348346270,1736459247347,150.0,8.41e-05,2]
[348346271,1736459260413,250.0,8.508e-05,2]
[348346275,1736459367325,150.0,8.211e-05,2]
[348346276,1736459367383,150.0,8.359e-05,2]
[348346277,1736459427192,150.0,8.34e-05,2]
[348346278,1736459427298,150.0,8.41e-05,2]
[348346279,1736459427467,150.0,8.018e-05,2]
[348346285,1736459432262,-4277.70765984,8.599e-05,2]
[348346286,1736459432273,-4190.01234016,8.599e-05,2]
[348346287,1736459432283,-212.52,8.815e-05,2]
[348346288,1736459432292,-208.69374742,8.816e-05,2]
[348346289,1736459432302,-337.71015578,8.816e-05,2]
[348346290,1736459432311,-2566.71875471,8.867e-05,2]
[348346291,1736459432322,-1900.0,8.867e-05,2]
[348346292,1736459432334,-255.97559429,8.867e-05,2]
[348346293,1736459432345,-821.24910659,8.867e-05,2]
[348346294,1736459432357,-3334.91532517,8.867e-05,2]
[348346295,1736459432429,-393.53525802,8.867e-05,2]
[348346296,1736459432439,-7.24474198,8.867e-05,2]
[348346297,1736459432498,-242.75525802,8.867e-05,2]
[348346298,1736459432507,-617.05,8.867e-05,2]
[348346299,1736459432516,-1000.0,8.901e-05,2]
[348346300,1736459432525,-150.0,8.932e-05,2]
[348346301,1736459432535,-1102.41300421,8.969e-05,2]
[348346302,1736459432546,-2.07699579,8.969e-05,2]
[348346303,1736459432556,-772.01,8.97e-05,2]
[348346304,1736459432565,-437.83,8.97e-05,2]
[348346305,1736459432575,-150.0,9e-05,2]
[348346306,1736459432585,-150.0,9e-05,2]
[348346307,1736459432595,-150.0,9e-05,2]
[348346308,1736459432605,-150.0,9e-05,2]
[348346309,1736459432614,-162.7,9.01e-05,2]
[348346310,1736459432624,-301.0,9.03e-05,2]
[348346311,1736459432633,-6759.66,9.036e-05,2]
[348346312,1736459432643,-2907.57,9.036e-05,2]
[348346313,1736459432652,-1100.0,9.09e-05,2]
[348346314,1736459432662,-500.0,9.09e-05,2]
[348346315,1736459432671,-150.0,9.161e-05,2]
[348346317,1736459432681,-150.0,9.2e-05,2]
[348346319,1736459432690,-150.0,9.221e-05,2]
[348346321,1736459432699,-2456.12,9.221e-05,2]
[348346322,1736459432708,-166.55,9.234e-05,2]
[348346323,1736459432717,-150.99,9.234e-05,2]
[348346324,1736459432727,-150.0,9.285e-05,2]
[348346325,1736459432736,-150.0,9.297e-05,2]
[348346326,1736459432745,-150.0,9.4e-05,2]
[348346327,1736459432755,-154.081,9.5e-05,2]
[348346328,1736459432764,-150.0,9.52e-05,2]
[348346329,1736459432774,-150.0,9.565e-05,2]
[348346330,1736459432784,-150.0,9.576e-05,2]
[348346331,1736459432793,-150.0,9.6e-05,2]
[348346332,1736459432803,-150.0,9.627e-05,2]
[348346333,1736459432812,-150.0,9.643e-05,2]
[348346334,1736459432824,-1000.0,9.645e-05,2]
[348346335,1736459432834,-530.979491,9.646e-05,2]
[348346336,1736459432843,-23695.3926,9.646e-05,2]
[348346338,1736459432852,-20090.0,9.649e-05,2]
[348346339,1736459432862,-150.0,9.684e-05,2]
[348346340,1736459432872,-787.212,9.744e-05,2]
[348346341,1736459432881,-4720.5078,9.744e-05,2]
[348346342,1736459432890,-4326.3633,9.744e-05,2]
[348346343,1736459432900,-58067.296,9.745e-05,2]
[348346344,1736459432909,-1283.817,9.745e-05,2]
[348346345,1736459432919,-1000.0,9.746e-05,2]
[348346346,1736459432928,-916.1245,9.746e-05,2]
[348346347,1736459432937,-2486.0653,9.746e-05,2]
[348346348,1736459432947,-500.0,9.776e-05,2]
[348346349,1736459432956,-150.0,9.79e-05,2]
[348346350,1736459432967,-150.0,9.8e-05,2]
[348346351,1736459432976,-150.0,9.803e-05,2]
[348346352,1736459432986,-150.0,9.805e-05,2]
[348346353,1736459432995,-150.0,9.807e-05,2]
[348346354,1736459433005,-500.0,9.843e-05,2]
[348346355,1736459433015,-2644.63,9.843e-05,2]
[348346356,1736459433024,-3500.23,9.843e-05,2]
[348346357,1736459433034,-1847.1,9.843e-05,2]
[348346358,1736459433044,-520.11,9.843e-05,2]
[348346359,1736459433054,-1236.85,9.843e-05,2]
[348346360,1736459433064,-2951.42,9.843e-05,2]
[348346361,1736459433074,-500.0,9.843e-05,2]
[348346362,1736459433084,-500.0,9.843e-05,2]
[348346363,1736459433094,-500.0,9.843e-05,2]
[348346364,1736459433103,-904.33,9.843e-05,2]
[348346365,1736459433113,-1049.58,9.843e-05,2]
[348346366,1736459433123,-500.0,9.843e-05,2]
[348346367,1736459433133,-557.68,9.843e-05,2]
[348346368,1736459433145,-908.59,9.843e-05,2]
[348346369,1736459433155,-1404.4,9.844e-05,2]
[348346370,1736459433164,-1238.48,9.844e-05,2]
[348346371,1736459433174,-500.0,9.844e-05,2]
[348346372,1736459433185,-500.0,9.844e-05,2]
[348346373,1736459433195,-857.08,9.844e-05,2]
[348346374,1736459433205,-500.0,9.844e-05,2]
[348346375,1736459433215,-500.0,9.844e-05,2]
[348346376,1736459433226,-500.0,9.844e-05,2]
[348346377,1736459433235,-500.0,9.844e-05,2]
[348346378,1736459433246,-500.0,9.844e-05,2]
[348346379,1736459433255,-500.0,9.844e-05,2]
[348346380,1736459433265,-500.0,9.844e-05,2]
[348346381,1736459433275,-500.0,9.844e-05,2]
[348346382,1736459433284,-756.56,9.844e-05,2]
[348346383,1736459433294,-500.0,9.844e-05,2]
[348346384,1736459433303,-627.45,9.844e-05,2]
[348346385,1736459433313,-500.0,9.844e-05,2]
[348346386,1736459433322,-1953.67,9.844e-05,2]
[348346387,1736459433332,-988.69,9.844e-05,2]
[348346388,1736459433341,-697.85,9.844e-05,2]
[348346389,1736459433350,-500.0,9.844e-05,2]
[348346390,1736459433359,-799.11,9.844e-05,2]
[348346391,1736459433369,-518.48,9.844e-05,2]
[348346392,1736459433378,-500.0,9.844e-05,2]
[348346393,1736459433387,-500.0,9.844e-05,2]
[348346394,1736459433396,-500.0,9.844e-05,2]
[348346395,1736459433405,-500.0,9.844e-05,2]
[348346396,1736459433415,-500.0,9.844e-05,2]
[348346397,1736459433424,-500.0,9.844e-05,2]
[348346398,1736459433433,-922.26,9.844e-05,2]
[348346399,1736459433443,-500.0,9.844e-05,2]
[348346400,1736459433452,-500.0,9.844e-05,2]
[348346401,1736459433461,-727.39,9.844e-05,2]
[348346402,1736459433471,-500.0,9.844e-05,2]
[348346403,1736459433480,-1189.83,9.844e-05,2]
[348346404,1736459433490,-500.0,9.844e-05,2]
[348346405,1736459433500,-198.56,9.844e-05,2]
[348346406,1736459433509,-500.0,9.844e-05,2]
[348346407,1736459433518,-500.0,9.844e-05,2]
[348346408,1736459433528,-500.0,9.844e-05,2]
[348346409,1736459433537,-886.64,9.844e-05,2]
[348346410,1736459433547,-500.0,9.844e-05,2]
[348346411,1736459433556,-555.74,9.844e-05,2]
[348346412,1736459433566,-500.0,9.844e-05,2]
[348346413,1736459433576,-564.38,9.844e-05,2]
[348346414,1736459433585,-979.89,9.844e-05,2]
[348346415,1736459433594,-174.22188404,9.844e-05,2]
[348346416,1736459433604,-500.0,9.844e-05,2]
[348346417,1736459433613,-500.0,9.844e-05,2]
[348346418,1736459433623,-1248.18,9.844e-05,2]
[348346419,1736459433633,-500.0,9.844e-05,2]
[348346420,1736459433642,-500.0,9.844e-05,2]
[348346421,1736459433652,-500.0,9.844e-05,2]
[348346422,1736459433661,-500.0,9.844e-05,2]
[348346423,1736459433671,-1744.94,9.844e-05,2]
[348346424,1736459433680,-1028.37,9.844e-05,2]
[348346425,1736459433689,-500.0,9.844e-05,2]
[348346426,1736459433699,-500.0,9.844e-05,2]
[348346427,1736459433708,-650.45,9.844e-05,2]
[348346428,1736459433718,-500.0,9.844e-05,2]
[348346429,1736459433727,-500.0,9.844e-05,2]
[348346430,1736459433736,-528.68744945,9.844e-05,2]
[348346431,1736459433746,-500.0,9.844e-05,2]
[348346432,1736459433756,-500.0,9.844e-05,2]
[348346433,1736459433767,-500.0,9.844e-05,2]
[348346434,1736459433777,-1015.95,9.844e-05,2]
[348346435,1736459433787,-500.0,9.844e-05,2]
[348346436,1736459433796,-500.0,9.844e-05,2]
[348346437,1736459433806,-1038.77,9.844e-05,2]
[348346438,1736459433816,-500.0,9.844e-05,2]
[348346439,1736459433827,-3443.24,9.844e-05,2]
[348346440,1736459433836,-500.0,9.844e-05,2]
[348346441,1736459433846,-500.0,9.844e-05,2]
[348346442,1736459433855,-772.55,9.844e-05,2]
[348346443,1736459433865,-500.0,9.844e-05,2]
[348346444,1736459433875,-500.0,9.844e-05,2]
[348346445,1736459433885,-500.0,9.844e-05,2]
[348346446,1736459433894,-500.0,9.844e-05,2]
[348346447,1736459433904,-500.0,9.844e-05,2]
[348346448,1736459433914,-501.82,9.844e-05,2]
[348346449,1736459433923,-500.0,9.844e-05,2]
[348346450,1736459433933,-500.0,9.844e-05,2]
[348346451,1736459433942,-840.05,9.844e-05,2]
[348346452,1736459433953,-500.0,9.844e-05,2]
[348346453,1736459433962,-500.0,9.844e-05,2]
[348346454,1736459433972,-1027.5,9.844e-05,2]
[348346455,1736459433981,-500.0,9.844e-05,2]
[348346456,1736459433991,-1900.86,9.844e-05,2]
[348346457,1736459434000,-500.0,9.844e-05,2]
[348346458,1736459434010,-500.0,9.844e-05,2]
[348346459,1736459434020,-500.0,9.844e-05,2]
[348346460,1736459434029,-500.0,9.844e-05,2]
[348346461,1736459434039,-702.2,9.844e-05,2]
[348346462,1736459434048,-500.0,9.844e-05,2]
[348346463,1736459434058,-500.0,9.844e-05,2]
[348346464,1736459434067,-598.86120518,9.844e-05,2]
[348346465,1736459434077,-500.0,9.844e-05,2]
[348346466,1736459434087,-1017.64,9.844e-05,2]
[348346467,1736459434096,-500.0,9.844e-05,2]
[348346468,1736459434105,-500.0,9.844e-05,2]
[348346469,1736459434115,-282.4719779,9.844e-05,2]
[348346470,1736459434124,-500.0,9.844e-05,2]